[Event "4NCL 2023-2024"]
[Site "Daventry"]
[Date "2024.05.05"]
[Round "10.20"]
[White "Boswell, Jacob Connor"]
[Black "Willow, Jonah B"]
[Result "0-1"]
[ECO "E62"]
[WhiteElo "2252"]
[BlackElo "2417"]
[Annotator "TA"]
[PlyCount "88"]
[EventDate "2023.11.11"]
[EventType "team-tourn"]
[EventCountry "ENG"]
[SourceTitle "playchess.com"]
[Source "ChessBase"]
[SourceQuality "1"]
[TimeControl "40/6000+30:3000+30"]

{[%evp 21,88,18,14,15,13,-6,0,-4,0,-34,-30,-42,-51,-70,-33,-118,-91,-103,-77,-216,-221,-236,-220,-237,-181,-278,-252,-275,-178,-254,-248,-439,-436,-443,-443,-769,-286,-262,-296,-288,-290,-277,-291,-263,-262,-243,-272,-251,-246,-278,-271,-256,-252,-258,-251,-276,-230,-545,-531,-797,-766,-1185,-1062,-6921,-6496,-6091,-5441,-6227,-5722]} 1. d4 {[%emt 0:02:34]} Nf6 {[%emt 0:00:33]} 2. c4 {[%emt 0:00:20]} g6 {[%emt 0:00:45]} 3. Nf3 {[%emt 0:01:36]} Bg7 {[%emt 0:00:09]} 4. g3 {[%emt 0:01:14]} O-O {[%emt 0:00:42]} 5. Bg2 {[%emt 0:00:07]} d6 {[%emt 0:00:09]} 6. O-O {[%emt 0:01:27]} Nc6 {[%emt 0:00:34]} 7. Nc3 {[%emt 0:01:30]} Bf5 {[%emt 0:00:31]} 8. d5 {[%emt 0:07:16]} Na5 {[%emt 0:00:18]} 9. Nd4 {[%emt 0:01:23]} Bd7 {[%emt 0:00:23]} 10. Qd3 {[%emt 0:02:08]} c5 {[%emt 0:01:33]} 11. Nc2 {[%emt 0:11:25]} a6 {[%emt 0:01:33]} 12. b3 {[%emt 0:05:43] Inhibits b5.} Rb8 {[%emt 0:02:59]} 13. Bg5 {[%emt 0:03:13]} b5 {[%emt 0:04:57]} 14. h3 {[%emt 0:03:33] The position is equal.} Be8 {[%emt 0:25:13]} 15. Bd2 {[%emt 0:15:25]} Nd7 {[%emt 0:07:07] [#] White must now prevent ...bxc4.} 16. f4 {[%emt 0:01:34]} Nb6 {[%emt 0:03:34]} 17. cxb5 {[%emt 0:11:13]} axb5 {[%emt 0:01:17]} 18. Rae1 {[%emt 0:03:09]} ({Better is} 18. Rab1 $1 $15) 18... b4 $36 {[%emt 0:07:13][%cal Oc5c4][%mdl 2048] ...c4! would now be deadly. White is under strong pressure.} 19. Nd1 {[%emt 0:02:35]} c4 {[%emt 0:10:51]} 20. bxc4 {[%emt 0:00:54]} (20. Qe3 $17) 20... Nbxc4 $19 {[%emt 0:01:03]} 21. Kh2 {[%emt 0:14:27]} Nxd2 {[%emt 0:10:19]} 22. Qxd2 {[%emt 0:00:03]} Qb6 {[%emt 0:01:27]} 23. Rf3 {[%emt 0:02:31]} (23. e4 $142) 23... Ba4 {[%emt 0:01:44] Strongly threatening ...Rfc8.} 24. Nce3 {[%emt 0:01:51]} Rfc8 {[%emt 0:04:26] [#] aiming for ...b3.} 25. Ref1 {[%emt 0:03:56]} (25. f5 {was worth a try.}) 25... Qd4 {[%emt 0:04:49]} 26. Qe1 {[%emt 0:03:52]} (26. Qxd4 {was the only defense.} Bxd4 27. f5) 26... Rc1 {[%emt 0:02:35]} 27. f5 {[%emt 0:01:27]} Nc4 {[%emt 0:05:30]} 28. Rf4 {[%emt 0:01:41]} (28. Nxc4 $142 Rxd1 29. Qf2 Qxc4 30. Qa7) 28... Qxe3 $2 {[%emt 0:01:34]} (28... Nxe3 29. Rxd4 Bxd4 30. Nxe3 Rxe1 31. Rxe1 Bxe3) 29. Nxe3 {[%emt 0:01:50]} Rxe1 {[%emt 0:00:10]} 30. Nxc4 {[%emt 0:01:04]} Rxe2 {[%emt 0:00:35]} 31. R1f2 {[%emt 0:00:53]} Rxf2 {[%emt 0:00:29]} 32. Rxf2 {[%emt 0:00:02]} Rc8 {[%emt 0:04:09]} 33. Na5 {[%emt 0:02:29]} Rc2 {[%emt 0:04:18]} ({Resist} 33... Bd4 34. Rf4 Bc3 35. fxg6 hxg6 36. Rf2) 34. Rxc2 {[%emt 0:00:11]} Bxc2 {[%emt 0:00:01]} 35. fxg6 {[%emt 0:00:05]} hxg6 {[%emt 0:00:29][%mdl 4096] Endgame. Threatens to win with ...Bb1. KBB-KBN} 36. Bf1 {[%emt 0:00:45]} Bc3 {[%emt 0:00:52]} 37. Bc4 {[%emt 0:00:30]} Kg7 {[%emt 0:00:27]} 38. Kg2 {[%emt 0:01:02]} Kf6 {[%emt 0:00:34]} 39. Bb3 $2 {[%emt 0:02:08]} (39. Kf2 {is a better chance.}) 39... Bxb3 {[%emt 0:03:16] Black is clearly winning.} 40. axb3 {[%emt 0:00:02]} Ke5 {[%emt 0:00:06]} 41. Nc6+ {[%emt 0:51:11]} Kxd5 {[%emt 0:03:05]} 42. Nxe7+ {[%emt 0:00:00]} Ke6 {[%emt 0:08:09]} 43. Nc6 {[%emt 0:00:00]} Kd7 {[%emt 0:01:17]} 44. Na5 {[%emt 0:00:00]} d5 {[%emt 0:00:09] Black took control after the opening.   Weighted Error Value: White=1.03/Black=0.23 (precise) .  Mistake:       	White=7     	Black=1      Inaccurate:     	White=3     	Black=2      OK:         	White=9     	Black=10     Best:        	White=1     	Black=2} 0-1

[Event "4NCL 2023-2024"]
[Site "Daventry"]
[Date "2024.05.05"]
[Round "10.21"]
[White "Czopor, Maciej"]
[Black "Eggleston, David J"]
[Result "1/2-1/2"]
[ECO "B92"]
[WhiteElo "2363"]
[BlackElo "2334"]
[Annotator "TA"]
[PlyCount "91"]
[EventDate "2023.11.11"]
[EventType "team-tourn"]
[EventCountry "ENG"]
[SourceTitle "playchess.com"]
[Source "ChessBase"]
[SourceQuality "1"]
[TimeControl "40/6000+30:3000+30"]

{[%evp 24,91,10,20,30,8,10,0,0,0,54,28,68,62,56,70,92,79,77,78,94,80,120,101,113,117,112,129,128,23,8,0,0,0,0,0,21,22,148,143,383,89,93,20,111,103,124,5,82,79,89,81,132,140,124,83,137,0,0,0,35,0,0,0,0,0,0,0,0,0]} 1. e4 {[%emt 0:00:04]} c5 {[%emt 0:01:20]} 2. Nf3 {[%emt 0:00:37]} d6 {[%emt 0:01:17]} 3. d4 {[%emt 0:00:07]} Nf6 {[%emt 0:00:06]} 4. Nc3 {[%emt 0:00:04]} cxd4 {[%emt 0:00:06]} 5. Nxd4 {[%emt 0:00:05]} a6 {[%emt 0:00:07]} 6. Be2 {[%emt 0:00:50]} e5 {[%emt 0:00:50]} 7. Nb3 {[%emt 0:00:09]} Be7 {[%emt 0:00:23]} 8. Be3 {[%emt 0:00:07]} Be6 {[%emt 0:00:42]} 9. Nd5 {[%emt 0:00:10]} Nbd7 {[%emt 0:01:14]} 10. Qd3 {[%emt 0:00:17]} O-O {[%emt 0:03:07]} 11. O-O {[%emt 0:02:31]} b5 {[%emt 0:17:11][%cal Bb7b5,Bb5b4][%mdl 32]} 12. a4 {[%emt 0:08:39]} Bxd5 {[%emt 0:16:42]} 13. exd5 {[%emt 0:00:06]} b4 {[%emt 0:01:36]} 14. a5 {[%emt 0:02:16]} Qc7 {[%emt 0:01:17]} 15. Rfd1 {[%emt 0:06:04]} Rfc8 {[%emt 0:04:01]} 16. Rac1 {[%emt 0:00:32]} Bf8 {[%emt 0:02:38]} (16... Qb7 $11) 17. g4 {[%emt 0:11:50][%cal Bg2g4,Bg4g5][%mdl 32]} Qb7 {[%emt 0:15:53]} 18. g5 {[%emt 0:03:52]} Ne8 {[%emt 0:00:22]} 19. Bg4 {[%emt 0:11:25] Black is weak on the light squares} Rd8 {[%emt 0:04:58]} 20. h4 $36 {[%emt 0:09:48][%mdl 2048] White is really pushing.} g6 {[%emt 0:05:41]} 21. h5 {[%emt 0:04:57]} Nc5 {[%emt 0:04:52]} 22. Qc4 {[%emt 0:03:09]} Ng7 {[%emt 0:01:23]} 23. hxg6 {[%emt 0:05:13]} hxg6 {[%emt 0:00:08]} 24. Nxc5 {[%emt 0:05:06]} dxc5 {[%emt 0:00:08]} 25. Qe4 {[%emt 0:00:23] Prevents Nf5.} (25. Bxc5 $6 Qc7 26. d6 Bxd6 $11) 25... Qc7 {[%emt 0:06:29][%cal Og7e8] [#]} 26. d6 {[%emt 0:06:25]} Bxd6 $11 {[%emt 0:00:36]} 27. Rd5 {[%emt 0:00:08]} Bf8 {[%emt 0:07:24]} 28. Qxe5 {[%emt 0:06:44]} Qxa5 {[%emt 0:00:28]} 29. Bd7 {[%emt 0:02:22][%cal Oc1d1]} (29. Bxc5 $2 Rxd5 30. Qxd5 Rd8 $19 (30... Qxc5 $2 31. Qxa8 Qxg5 32. Re1 $19)) 29... Nh5 {[%emt 0:02:45]} 30. Rcd1 {[%emt 0:02:43][%mdl 1024] White has compensation.} Bg7 {[%emt 0:01:31] [#] Prevents Be6} (30... Qb6 $11) 31. Qe4 $1 $16 {[%emt 0:03:02]} Bf8 {[%emt 0:01:12]} (31... b3 $16 {is a better defense.}) 32. Bc6 $2 {[%emt 0:07:35]} (32. Be6 $1 $18 fxe6 33. Qxe6+ (33. Qxg6+ Ng7 $11) 33... Kh7 34. Qf7+ Bg7 35. Rd6) 32... Rac8 {[%emt 0:01:27]} 33. Rd7 {[%emt 0:01:19] Repels Qc7} (33. Qd3 $16 {[%cal Rd5d8]} c4 34. Qd4 (34. Qxc4 Rxd5 35. Qxd5 Qxd5 $11) 34... Rxd5 35. Bxd5) 33... Rxd7 {[%emt 0:01:46]} (33... Ng7 $1 $11) 34. Rxd7 {[%emt 0:00:06] Strongly threatening Bd5.} Rc7 {[%emt 0:03:59]} 35. Qd5 {[%emt 0:00:36]} (35. Rxf7 $16 Rxf7 36. Qxg6+ Ng7 37. Bd5) 35... Rxd7 {[%emt 0:00:30]} (35... Be7 $1 $11 {keeps the balance.}) 36. Qxd7 {[%emt 0:00:06] Bd5 would kill now.} Qa1+ {[%emt 0:00:43]} 37. Kg2 {[%emt 0:00:19] Active counter play!} Qxb2 {[%emt 0:00:40]} ({Black should play} 37... Ng7) 38. Bd5 {[%emt 0:00:05]} Qg7 {[%emt 0:00:17]} 39. Qe8 {[%emt 0:02:03][%cal Og2f3]} a5 {[%emt 0:01:19] [#]} (39... Kh7 $142) 40. Kf3 {[%emt 0:03:32]} (40. f4 $1 $16) 40... Kh7 $1 $11 {[%emt 0:02:48]} 41. Bxf7 {[%emt 0:51:20] This pair of bishops is nice.} Bd6 {[%emt 0:06:07][%cal Oa5a4]} (41... a4 $5) 42. Kg4 {[%emt 0:00:00]} a4 $1 {[%emt 0:17:36] The position is equal.} 43. f4 {[%emt 0:00:00] Some like it hot} Bxf4 {[%emt 0:03:15]} 44. Bxf4 {[%emt 0:00:00]} Nxf4 {[%emt 0:00:12]} 45. Kxf4 {[%emt 0:00:00][%cal Oe8d7] Threatening mate with Qd7!} Qd4+ {[%emt 0:00:30]} 46. Kf3 {[%emt 0:00:00] Weighted Error Value: White=0.33/Black=0.29 (precise) .  Loses game:     	---       	Black=1      Missed win:     	White=1     	---        Mistake:       	White=4     	Black=6      Inaccurate:     	White=3     	Black=3      OK:         	White=10    	Black=10     Best:        	White=5     	Black=3      Strong:       	White=1     	Black=2} 1/2-1/2

[Event "4NCL 2023-2024"]
[Site "Daventry"]
[Date "2024.05.05"]
[Round "10.23"]
[White "Jackson, James P"]
[Black "Arkell, Keith C"]
[Result "1-0"]
[ECO "A11"]
[WhiteElo "2355"]
[BlackElo "2377"]
[Annotator "TA"]
[PlyCount "137"]
[EventDate "2023.11.11"]
[EventType "team-tourn"]
[EventCountry "ENG"]
[SourceTitle "playchess.com"]
[Source "ChessBase"]
[SourceQuality "1"]
[TimeControl "40/6000+30:3000+30"]

{[%evp 45,137,0,0,0,0,0,8,8,19,-22,-27,-32,0,-12,-20,-20,-11,-32,-27,-36,-37,-37,-29,-9,-8,-29,-32,-20,-10,-9,-10,-31,0,0,0,0,33,33,33,35,110,101,114,14,239,250,250,246,267,271,371,375,358,366,504,758,993,916,1006,944,777,548,470,64,629,1212,1350,1327,1492,1218,29950,29952,29940,4731,29955,29946,29958,29950,5108,2969,29984,29985,29985,29986,29988,29949,29989,29990,29991,29990,29991,29990,29990,29990]} 1. c4 {[%emt 0:03:17]} c6 {[%emt 0:00:23]} 2. Nf3 {[%emt 0:00:31]} d5 {[%emt 0:00:06]} 3. g3 {[%emt 0:00:41]} Nf6 {[%emt 0:00:40]} 4. Bg2 {[%emt 0:00:40]} Bf5 {[%emt 0:00:22]} 5. Qb3 {[%emt 0:01:17]} Qb6 {[%emt 0:00:29]} 6. d3 {[%emt 0:00:13]} e6 {[%emt 0:02:06] A11: English Opening: 1...c6.} 7. Be3 {[%emt 0:00:36]} Qxb3 {[%emt 0:00:41]} 8. axb3 {[%emt 0:00:07]} a6 {[%emt 0:00:57]} 9. Nh4 {[%emt 0:02:46]} Bg6 {[%emt 0:00:13]} 10. O-O {[%emt 0:13:29]} Nbd7 {[%emt 0:02:06]} 11. Nxg6 $146 {[%emt 0:02:31]} ({Predecessor:} 11. Nc3 Be7 12. h3 O-O 13. f4 Rfe8 14. Bf2 Nc5 15. b4 Nb3 16. Nxg6 hxg6 17. Rad1 Bxb4 {0-1 Syrov,A (2219)-Reimann,S (2369) Staufer op 34th 2024 (5)}) 11... hxg6 {[%emt 0:00:05]} 12. Bd2 {[%emt 0:00:06]} Rd8 {[%emt 0:05:26]} 13. b4 {[%emt 0:03:53]} Bd6 {[%emt 0:04:08]} 14. b3 {[%emt 0:04:07]} O-O {[%emt 0:01:52]} 15. Na3 {[%emt 0:07:37]} Rfe8 {[%emt 0:00:21]} 16. Nc2 {[%emt 0:02:09]} Bc7 {[%emt 0:09:49]} 17. Rfd1 {[%emt 0:03:44]} Bb6 {[%emt 0:00:25]} 18. Be1 {[%emt 0:03:01]} e5 {[%emt 0:06:30]} 19. e4 {[%emt 0:01:52]} dxe4 {[%emt 0:00:35]} 20. dxe4 {[%emt 0:00:05]} Nf8 {[%emt 0:03:14]} 21. c5 {[%emt 0:07:56]} Bc7 {[%emt 0:00:16]} 22. f3 {[%emt 0:00:26]} Ne6 {[%emt 0:05:29]} 23. Bf2 {[%emt 0:01:55]} g5 {[%emt 0:01:38]} 24. h3 {[%emt 0:01:26]} Nh5 {[%emt 0:07:46]} 25. Bf1 {[%emt 0:00:51]} Nd4 {[%emt 0:01:05]} 26. Nxd4 {[%emt 0:00:25]} exd4 {[%emt 0:00:04]} 27. g4 {[%emt 0:21:07]} Nf4 {[%emt 0:00:07]} 28. Bxd4 {[%emt 0:00:11]} Re7 {[%emt 0:02:53]} 29. Bf2 {[%emt 0:01:23]} Red7 {[%emt 0:00:10]} 30. Rxd7 {[%emt 0:00:32]} Rxd7 {[%emt 0:00:05]} 31. h4 {[%emt 0:00:42]} Be5 {[%emt 0:04:51]} 32. Rc1 {[%emt 0:01:44]} gxh4 {[%emt 0:02:01]} 33. Bxh4 {[%emt 0:00:07]} Rd2 {[%emt 0:02:55]} 34. Be1 {[%emt 0:06:14]} Rb2 {[%emt 0:05:30]} 35. Bc3 {[%emt 0:06:17]} Bxc3 {[%emt 0:00:10]} (35... Rxb3 $2 36. Bxe5 Rxf3 37. Rc3 Rxc3 38. Bxc3 $18) 36. Rxc3 {[%emt 0:00:01]} Kh7 {[%emt 0:03:17]} 37. Bc4 {[%emt 0:02:50]} Kg6 {[%emt 0:02:36]} 38. Kf1 {[%emt 0:02:11]} f6 {[%emt 0:03:59]} 39. Ke1 {[%emt 0:05:48]} Kg5 {[%emt 0:01:32]} 40. Kd1 {[%emt 0:01:33]} Kh4 {[%emt 0:19:09]} 41. Re3 {[%emt 0:15:57]} Kg3 {[%emt 0:05:29]} 42. e5 $1 {[%emt 0:00:06]} Ng2 {[%emt 0:11:54]} (42... fxe5 $1 $14 43. Rxe5 Kxf3) 43. Re4 $1 $16 {[%emt 0:04:47]} fxe5 {[%emt 0:00:15]} (43... Kxf3 $2 {is the wrong capture.} 44. e6 $18) 44. Rxe5 {[%emt 0:00:08]} (44. Kc1 $16 Ra2 (44... Kxf3 45. Rxe5 Ra2 46. Kb1 $18) 45. Rxe5) 44... Rb1+ $2 {[%emt 0:11:51] [#]} (44... Kf4 $1 $11 {and Black stays safe.} 45. Rf5+ Ke3) 45. Kd2 $1 $18 {[%emt 0:01:15]} Nh4 {[%emt 0:00:47]} 46. Kc2 {[%emt 0:02:35]} Rh1 {[%emt 0:04:23]} 47. Re7 {[%emt 0:00:36]} g5 {[%emt 0:00:06]} 48. Rxb7 {[%emt 0:00:12]} Nxf3 {[%emt 0:00:13]} 49. Bxa6 {[%emt 0:00:43]} Kxg4 {[%emt 0:00:22]} 50. Be2 {[%emt 0:12:26]} Kg3 {[%emt 0:03:00]} 51. Bxf3 {[%emt 0:00:08]} Kxf3 {[%emt 0:00:05]} 52. Rf7+ {[%emt 0:09:50]} Ke3 {[%emt 0:09:03]} 53. Rg7 {[%emt 0:00:22]} Kd4 {[%emt 0:03:12] [#]} 54. Rd7+ $2 {[%emt 0:00:09]} ({Not} 54. Rxg5 Rh2+ 55. Kd1 Rh1+ 56. Kd2 Rh2+ 57. Ke1 Kc3 $11) ({White has to play} 54. Kb2 $1 $18) 54... Ke3 $2 {[%emt 0:00:26][%mdl 8192]} (54... Ke5 $14) 55. Rd6 $18 {[%emt 0:01:18]} Rh8 {[%emt 0:00:31]} 56. Rxc6 {[%emt 0:02:38]} Rg8 {[%emt 0:01:14]} 57. Re6+ {[%emt 0:00:19]} Kf2 {[%emt 0:01:44]} 58. Kd2 {[%emt 0:01:12]} g4 {[%emt 0:02:24]} 59. Rf6+ {[%emt 0:00:10]} Kg1 {[%emt 0:00:51]} 60. b5 {[%emt 0:05:46]} g3 {[%emt 0:00:06]} 61. b6 {[%emt 0:00:25]} g2 {[%emt 0:00:14]} 62. b7 {[%emt 0:01:02]} Rd8+ {[%emt 0:08:41]} 63. Kc3 {[%emt 0:01:24]} Rg8 {[%emt 0:00:48]} 64. c6 {[%emt 0:00:08]} Kh1 {[%emt 0:01:25]} 65. Rh6+ {[%emt 0:00:07]} Kg1 {[%emt 0:00:03]} 66. c7 {[%emt 0:00:36]} Kf1 {[%emt 0:00:12]} 67. b8=Q {[%emt 0:01:37]} Rg3+ {[%emt 0:01:02]} 68. Kb2 {[%emt 0:00:15]} g1=Q {[%emt 0:00:09]} 69. Qb5+ {[%emt 0:00:23]} 1-0

[Event "4NCL 2023-2024"]
[Site "Daventry"]
[Date "2024.05.05"]
[Round "10.24"]
[White "Steil-Antoni, Fiona"]
[Black "Kalaiyalahan, Akshaya"]
[Result "0-1"]
[ECO "B23"]
[WhiteElo "2106"]
[BlackElo "2148"]
[Annotator "NA RC"]
[PlyCount "66"]
[EventDate "2023.11.11"]
[EventType "team-tourn"]
[EventCountry "ENG"]
[SourceTitle "playchess.com"]
[Source "ChessBase"]
[SourceQuality "1"]
[TimeControl "40/6000+30:3000+30"]

1. e4 {[%emt 0:03:25]} c5 {[%emt 0:00:05]} 2. Nc3 {[%emt 0:00:10]} Nc6 {[%emt 0:00:11]} 3. f4 {[%emt 0:00:15]} g6 {[%emt 0:00:13]} 4. Nf3 {[%emt 0:00:35]} Bg7 {[%emt 0:00:10]} 5. Bb5 {[%emt 0:00:13]} Nd4 {[%emt 0:00:17]} 6. O-O {[%emt 0:00:38]} Nxb5 {[%emt 0:00:17]} 7. Nxb5 {[%emt 0:00:09]} d6 {[%emt 0:00:18]} 8. d3 {[%emt 0:01:49]} a6 {[%emt 0:00:42]} 9. Nc3 {[%emt 0:01:29]} e6 {[%emt 0:01:40]} 10. Qe1 {[%emt 0:01:52]} Ne7 {[%emt 0:00:45]} 11. Kh1 {[%emt 0:09:10]} b5 {[%emt 0:02:32]} 12. Nd1 {[%emt 0:02:47]} O-O {[%emt 0:02:40]} 13. c3 {[%emt 0:01:11]} Nc6 {[%emt 0:08:13]} 14. Be3 {[%emt 0:01:07]} b4 {[%emt 0:02:37]} 15. d4 {[%emt 0:06:01]} bxc3 {[%emt 0:11:50]} 16. bxc3 {[%emt 0:00:21]} cxd4 {[%emt 0:00:16]} 17. cxd4 {[%emt 0:00:34]} a5 {[%emt 0:01:04]} 18. a3 {[%emt 0:05:35]} a4 {[%emt 0:07:33]} 19. Rf2 {[%emt 0:12:05]} Na5 {[%emt 0:02:12]} 20. Qb4 {[%emt 0:10:08]} Bb7 {[%emt 0:18:47]} 21. Nc3 {[%emt 0:04:19]} Bc6 {[%emt 0:07:16]} 22. Rb1 {[%emt 0:09:22]} Rb8 {[%emt 0:05:42]} 23. Qxb8 {[%emt 0:00:24]} Qxb8 {[%emt 0:00:03]} 24. Rxb8 {[%emt 0:00:12]} Rxb8 {[%emt 0:00:30]} 25. Nd2 {[%emt 0:04:19]} Nb3 {[%emt 0:08:17]} 26. Nf3 {[%emt 0:04:07]} Na5 {[%emt 0:00:19]} 27. Nd2 {[%emt 0:00:11]} d5 {[%emt 0:00:59]} 28. exd5 {[%emt 0:04:43]} exd5 {[%emt 0:00:51]} 29. Rf1 {[%emt 0:02:07]} Bf8 {[%emt 0:02:50]} 30. h3 {[%emt 0:08:12]} Re8 {[%emt 0:05:53]} 31. Bg1 {[%emt 0:04:41]} Bxa3 {[%emt 0:01:19]} 32. Nf3 {[%emt 0:02:07]} f6 {[%emt 0:02:52]} 33. Rb1 {[%emt 0:02:40]} Nc4 {[%emt 0:03:24]} 0-1

[Event "4NCL 2023-2024"]
[Site "Daventry"]
[Date "2024.05.05"]
[Round "10.25"]
[White "Chow, Samuel"]
[Black "Bates, Richard A"]
[Result "1/2-1/2"]
[ECO "E11"]
[WhiteElo "2355"]
[BlackElo "2315"]
[Annotator "TA"]
[PlyCount "47"]
[EventDate "2023.11.11"]
[EventType "team-tourn"]
[EventCountry "ENG"]
[SourceTitle "playchess.com"]
[Source "ChessBase"]
[SourceQuality "1"]
[TimeControl "40/6000+30:3000+30"]

{[%evp 11,47,23,22,17,23,14,14,0,30,24,20,26,45,21,27,22,25,31,38,33,45,22,29,23,22,18,24,22,14,15,36,24,27,0,31,0,20,0]} 1. d4 {[%emt 0:00:07]} Nf6 {[%emt 0:00:19]} 2. c4 {[%emt 0:00:22]} e6 {[%emt 0:00:26]} 3. Nf3 {[%emt 0:00:23]} Bb4+ {[%emt 0:00:32]} 4. Bd2 {[%emt 0:00:21]} a5 {[%emt 0:00:07]} 5. a3 {[%emt 0:00:19]} Bxd2+ {[%emt 0:00:29]} 6. Qxd2 {[%emt 0:00:14]} O-O {[%emt 0:05:52]} 7. Nc3 {[%emt 0:00:26]} d5 {[%emt 0:04:16]} 8. cxd5 {[%emt 0:03:20]} exd5 {[%emt 0:00:15]} 9. e3 {[%emt 0:00:12]} b6 {[%emt 0:08:25]} 10. Bd3 {[%emt 0:02:10]} Bb7 {[%emt 0:00:10]} 11. O-O {[%emt 0:05:36]} Qe7 {[%emt 0:15:02]} 12. Rac1 {[%emt 0:06:17]} Nbd7 {[%emt 0:02:49]} 13. Rfe1 {[%emt 0:04:45]} Ne4 {[%emt 0:10:36]} 14. Qc2 {[%emt 0:01:49]} (14. Nxe4 dxe4 15. Rxc7 Bc8 $17) 14... Rac8 {[%emt 0:00:28]} 15. Qb3 {[%emt 0:04:54]} Nxc3 {[%emt 0:20:15]} 16. bxc3 {[%emt 0:13:24]} g6 {[%emt 0:01:52]} 17. a4 {[%emt 0:07:12]} Qd6 {[%emt 0:04:31]} 18. Nd2 {[%emt 0:05:44]} c5 {[%emt 0:01:18]} 19. Qa3 {[%emt 0:05:23]} Rfd8 {[%emt 0:03:48]} 20. Rb1 {[%emt 0:02:09]} Qf8 {[%emt 0:07:01]} 21. Qa2 {[%emt 0:02:24]} Qd6 {[%emt 0:03:04]} 22. Qa3 {[%emt 0:10:31]} Qf8 {[%emt 0:00:08]} 23. Qa2 {[%emt 0:01:10]} Qd6 {[%emt 0:00:07]} 24. Qa3 {[%emt 0:00:21] Weighted Error Value: White=0.09 (flawless) /Black=0.05 (flawless) .  Inaccurate:     	---       	Black=1      OK:         	White=2     	Black=7} 1/2-1/2

[Event "4NCL 2023-2024"]
[Site "Daventry"]
[Date "2024.05.05"]
[Round "10.26"]
[White "Ansell, Simon T"]
[Black "Li, Harry"]
[Result "1/2-1/2"]
[ECO "C50"]
[WhiteElo "2333"]
[BlackElo "2138"]
[Annotator "TA"]
[PlyCount "50"]
[EventDate "2023.11.11"]
[EventType "team-tourn"]
[EventCountry "ENG"]
[SourceTitle "playchess.com"]
[Source "ChessBase"]
[SourceQuality "1"]
[TimeControl "40/6000+30:3000+30"]

{[%evp 9,50,16,15,11,27,20,20,10,17,8,14,0,14,-13,-3,-12,0,0,0,0,12,11,8,-33,5,5,6,-56,-68,-66,-53,-58,-26,-35,-29,-25,0,0,-9,-2,-2,-9,-12]} 1. e4 {[%emt 0:00:03]} e5 {[%emt 0:00:04]} 2. Nf3 {[%emt 0:00:13]} Nc6 {[%emt 0:00:03]} 3. Bc4 {[%emt 0:00:51]} Nf6 {[%emt 0:00:04]} 4. d3 {[%emt 0:00:14]} Bc5 {[%emt 0:00:04]} 5. a4 {[%emt 0:02:08]} d6 {[%emt 0:00:28]} 6. c3 {[%emt 0:01:57] b4 is the strong threat.} a5 {[%emt 0:00:03]} 7. O-O {[%emt 0:01:03]} h6 {[%emt 0:00:33]} 8. Be3 {[%emt 0:02:29]} Bxe3 {[%emt 0:00:51]} 9. fxe3 {[%emt 0:00:07]} O-O {[%emt 0:00:20]} 10. Qe1 {[%emt 0:02:10]} Be6 {[%emt 0:01:01]} 11. Nbd2 {[%emt 0:01:27]} Bxc4 {[%emt 0:11:36]} 12. Nxc4 {[%emt 0:00:56]} Ne7 {[%emt 0:05:22]} 13. Nh4 {[%emt 0:03:52]} Qd7 {[%emt 0:03:02]} 14. Qg3 {[%emt 0:11:13]} Qg4 {[%emt 0:01:55]} 15. Qxg4 {[%emt 0:16:13]} Nxg4 {[%emt 0:00:05]} 16. d4 {[%emt 0:11:49]} (16. h3 $5 Nf6 $8 17. Nf3 $11) 16... Nf6 {[%emt 0:01:27]} 17. dxe5 {[%emt 0:10:47]} dxe5 {[%emt 0:01:17]} 18. Nxe5 {[%emt 0:01:25]} (18. Nf5 $11 Nxf5 19. exf5) 18... Nxe4 $15 {[%emt 0:00:49]} 19. Rad1 {[%emt 0:00:20]} Nd6 {[%emt 0:02:33]} 20. e4 {[%emt 0:15:42]} Rad8 {[%emt 0:08:11]} ({But not} 20... Nxe4 21. Rd7 Nc6 22. Nxf7 $11) 21. Rfe1 {[%emt 0:02:00]} Rfe8 {[%emt 0:05:28]} 22. Nhf3 {[%emt 0:04:48]} f6 {[%emt 0:20:25]} 23. Nd3 {[%emt 0:02:00] The position is equal.} Nc6 {[%emt 0:00:05]} 24. e5 {[%emt 0:03:00]} fxe5 {[%emt 0:00:03]} 25. Ndxe5 {[%emt 0:00:18]} Nxe5 {[%emt 0:00:04] Weighted Error Value: White=0.13 (very precise) /Black=0.08 (flawless) .  Mistake:       	White=1     	---        Inaccurate:     	White=2     	Black=2      OK:         	White=7     	Black=10} 1/2-1/2